bitfinex-derivatives/quotes_SOLF0:USTF0_20250228
["timestamp","ask_amount","ask_price","bid_price","bid_amount"]
[1740743754197,7.54844301,133.57,133.54,7.786e-05]
[1740743754591,0.05644301,133.57,133.54,7.786e-05]
[1740743755396,0.05644301,133.57,133.55,7.4924]
[1740743755587,0.05644301,133.57,133.54,7.786e-05]
[1740743755990,0.05644301,133.57,133.56,7.4923]
[1740743756596,0.05644301,133.57,133.55,7.4926]
[1740743756795,0.05644301,133.57,133.54,7.786e-05]
[1740743757495,0.05644301,133.57,133.54,7.49317786]
[1740743757697,0.05644301,133.57,133.54,7.786e-05]
[1740743758093,0.05644301,133.57,133.55,7.4925]
[1740743758293,0.05644301,133.57,133.54,7.786e-05]
[1740743758894,7.54844301,133.57,133.54,7.49327786]
[1740743759092,0.05644301,133.57,133.54,7.786e-05]
[1740743759300,7.4927,133.56,133.54,7.786e-05]
[1740743759698,0.05644301,133.57,133.54,7.786e-05]
[1740743759898,7.4929,133.55,133.54,7.786e-05]
[1740743762101,11.97644301,133.57,133.55,7.4928]
[1740743762301,11.97644301,133.57,133.54,7.786e-05]
[1740743763301,7.4929,133.55,133.54,7.786e-05]
[1740743763703,11.97644301,133.57,133.54,7.786e-05]
[1740743763899,19.46844301,133.57,133.54,7.786e-05]
[1740743764096,11.97644301,133.57,133.54,7.786e-05]
[1740743764501,0.05644301,133.57,133.56,7.4923]
[1740743765101,14.73062252,133.63,133.54,7.786e-05]
[1740743765296,102.02819713,133.64,133.6,7.4898]
[1740743765500,83.07568325,133.64,133.6,7.4898]
[1740743765700,90.56378325,133.64,133.6,7.4898]
[1740743766401,0.05633104,133.63,133.61,7.53684475]
[1740743766601,7.4889,133.62,133.61,0.04754475]
[1740743766803,0.05633104,133.63,133.55,7.4924]
[1740743767000,83.07568325,133.64,133.55,7.4924]
[1740743767402,7.4908,133.59,133.55,7.4924]
[1740743767704,12.87595225,133.63,133.53,7.4935]
[1740743767904,0.05098774,133.58,133.51,5.9313]
[1740743768205,0.05098774,133.58,133.54,7.493]
[1740743768704,0.05098774,133.58,133.56,7.4923]
[1740743769508,0.05098774,133.58,133.51,5.9313]
[1740743770203,0.05098774,133.58,133.57,7.4918]
[1740743773511,0.05098774,133.58,133.51,5.9313]
[1740743773702,11.97098774,133.58,133.45,9.65697439]
[1740743773906,7.4931,133.55,133.52,7.4945]
[1740743774106,0.05010113,133.53,133.52,7.4945]
[1740743775401,1.8075,133.64,133.47,9.65697439]
[1740743775604,13.22857324,133.63,133.47,9.65697439]
[1740743775807,7.4898,133.61,133.48,14.9937]
[1740743776006,11.9,133.63,133.48,14.9937]
[1740743776206,11.9,133.63,133.57,7.4914]
[1740743776408,7.4902,133.6,133.57,7.4914]
[1740743776604,7.4902,133.6,133.59,0.05315939]
[1740743777906,7.54422064,133.61,133.59,0.05315939]
[1740743778706,7.4901,133.6,133.59,0.05315939]
[1740743778907,0.05442064,133.61,133.59,0.05315939]
[1740743779310,7.4901,133.6,133.59,0.05315939]
[1740743779714,0.05442064,133.61,133.48,179.03422529]
[1740743779913,11.9,133.63,133.48,14.9937]
[1740743780113,1.32863862,133.62,133.48,14.9937]
[1740743780314,1.32863862,133.62,133.46,207.5411]
[1740743780913,0.05215161,133.55,133.46,207.5411]
[1740743781109,1.32863862,133.62,133.46,207.5411]
[1740743781310,0.05707148,133.52,133.46,207.5411]
[1740743781510,7.4923,133.56,133.53,7.4936]
[1740743781911,7.54774401,133.56,133.53,7.4936]
[1740743782413,7.493,133.55,133.46,207.5411]
[1740743782613,39.54612701,133.63,133.52,7.4943]
[1740743782817,1.32883252,133.62,133.52,7.4943]
[1740743783114,0.05482974,133.59,133.51,7.4948]
[1740743783416,1.32883252,133.62,133.46,207.5411]
[1740743783616,1.32883252,133.62,133.5,7.4954]
[1740743783617,7.4943,133.53,133.5,7.4954]
[1740743784115,0.05403945,133.53,133.5,7.4954]
[1740743784709,0.05403945,133.53,133.51,7.495]
[1740743786218,7.54803945,133.53,133.51,7.495]
[1740743787719,7.54803945,133.53,133.5,7.4954]
[1740743788118,7.54803945,133.53,133.46,207.5411]
[1740743789420,0.05403945,133.53,133.46,207.5411]
[1740743789822,0.05403945,133.53,133.52,7.4946]
[1740743790521,7.492,133.57,133.55,7.4928]
[1740743791113,18.93664653,133.63,133.47,164.04052529]
[1740743791316,30.81664653,133.63,133.47,164.04052529]
[1740743791719,0.05126203,133.56,133.54,0.05372025]
[1740743792023,7.4896,133.61,133.51,1.8684]
[1740743792219,7.4896,133.61,133.58,7.4909]
[1740743792617,7.4901,133.6,133.52,1.8112]
[1740743792817,30.81664653,133.63,133.52,1.8112]
[1740743793019,0.05464963,133.57,133.55,0.0531442]
[1740743793220,7.4927,133.56,133.55,0.0531442]
[1740743793420,0.0536763,133.57,133.55,0.0531442]
[1740743793723,11.88,133.63,133.55,0.0531442]
[1740743793916,0.05753977,133.57,133.55,0.0531442]
[1740743794120,1.32856337,133.62,133.55,0.0531442]
[1740743794328,7.4923,133.56,133.55,0.0531442]
[1740743797126,19.3723,133.56,133.55,0.0531442]
[1740743797424,21.2316,133.56,133.55,0.0531442]
[1740743798020,13.7393,133.56,133.47,1.8521]
[1740743798226,7.4954,133.51,133.44,1.9331]
[1740743798426,1.8197,133.55,133.44,1.9331]
[1740743798728,1.8197,133.55,133.41,22.5015]
[1740743798729,7.4955,133.51,133.41,22.5015]
[1740743798921,1.8593,133.5,133.39,39.45511475]
[1740743799125,11.92,133.49,133.39,41.39731475]
[1740743799326,0.05149353,133.46,133.4,7.5012]
[1740743799531,0.05149353,133.46,133.39,41.39731475]
[1740743799734,7.499,133.45,133.39,41.39731475]
[1740743799935,0.05149353,133.46,133.39,41.39731475]
[1740743800438,7.4987,133.45,133.39,48.89861475]
[1740743800835,7.4987,133.45,133.39,41.39731475]
[1740743801035,7.4991,133.44,133.39,41.39731475]
[1740743801237,1.83,133.48,133.39,41.39731475]
[1740743801538,0.05524314,133.43,133.39,41.39731475]
[1740743801732,0.05524314,133.43,133.39,39.45511475]
[1740743802139,7.5012,133.41,133.39,39.45511475]
[1740743802737,0.05524314,133.43,133.39,39.45511475]
[1740743802936,7.5013,133.4,133.34,1.9422]
[1740743803139,1.83,133.48,133.34,1.9422]
[1740743803340,0.04778387,133.38,133.35,7.5039]
[1740743803531,11.92,133.42,133.29,39.45511475]
[1740743803737,0.05514127,133.38,133.3,1.8532]
[1740743803940,7.504,133.36,133.3,1.8532]
[1740743804436,0.05158703,133.34,133.33,7.5052]
[1740743804639,2.0005,133.4,133.3,1.8532]
[1740743804842,0.05208388,133.35,133.29,41.41521475]
[1740743805539,0.05208388,133.35,133.31,7.5059]
[1740743805739,0.05208388,133.35,133.29,39.45511475]
[1740743806646,3.8104,133.41,133.29,39.45511475]
[1740743807143,7.5014,133.4,133.35,7.5039]
[1740743807341,3.8104,133.41,133.28,2.0028]
[1740743807942,0.05668474,133.36,133.33,0.05028214]
[1740743808145,7.56068474,133.36,133.33,0.05028214]
[1740743808351,0.05668474,133.36,133.33,0.05028214]
[1740743808645,0.05668474,133.36,133.34,7.5043]
[1740743808843,0.05668474,133.36,133.33,0.05028214]
[1740743809544,0.05668474,133.36,133.35,7.5041]
[1740743811348,11.94,133.43,133.38,7.5023]
[1740743811848,7.5005,133.42,133.34,3.8038]
[1740743812043,11.94,133.43,133.39,7.5014]
[1740743812249,1.9607,133.44,133.39,7.5014]
[1740743812450,0.05005582,133.42,133.4,0.05109668]
[1740743813349,7.55065582,133.42,133.4,0.05109668]
[1740743814345,0.05005582,133.42,133.4,0.05109668]
[1740743814650,7.5007,133.41,133.4,0.05109668]
[1740743815040,7.55045582,133.42,133.4,0.05109668]
[1740743815649,7.5007,133.41,133.4,0.05109668]
[1740743815850,0.05005582,133.42,133.4,0.05109668]
[1740743816247,0.05005582,133.42,133.41,7.5007]
[1740743816447,0.05005582,133.42,133.4,0.05109668]
[1740743816848,0.05005582,133.42,133.4,7.55199668]
[1740743817051,0.05005582,133.42,133.4,0.05109668]
[1740743817552,0.05005582,133.42,133.41,7.5007]
[1740743817756,0.05005582,133.42,133.4,0.05109668]
[1740743818051,0.05005582,133.42,133.4,7.55189668]
[1740743818251,0.05005582,133.42,133.4,0.05109668]
[1740743819052,7.5007,133.41,133.4,0.05109668]
[1740743820850,0.05005582,133.42,133.4,0.05109668]
[1740743822557,0.05005582,133.42,133.41,7.5007]
[1740743824755,0.05005582,133.42,133.4,0.05109668]
[1740743825460,0.05005582,133.42,133.41,7.5007]
[1740743825857,7.4982,133.46,133.43,7.4991]
[1740743826056,11.98,133.48,133.41,1.9793]
[1740743826554,19.4769,133.48,133.45,7.4982]
[1740743826753,1.8581,133.51,133.41,1.9793]
[1740743826959,11.98,133.52,133.42,1.9719]
[1740743827161,7.812e-05,133.47,133.45,0.04960491]
[1740743827454,1.9293,133.54,133.42,1.9719]
[1740743827662,1.9293,133.54,133.49,7.4962]
[1740743827963,3.8546,133.58,133.42,166.01242529]
[1740743828256,0.05273352,133.51,133.49,0.05338698]
[1740743828557,7.4937,133.54,133.42,166.01242529]
[1740743828759,0.05072851,133.51,133.49,7.55038167]
[1740743828959,12.06,133.57,133.49,0.05458167]
[1740743829258,7.54826523,133.51,133.49,0.05458167]
[1740743829454,7.4954,133.51,133.49,0.05458167]
[1740743829761,7.54995411,133.51,133.49,0.05458167]
[1740743829955,0.05455411,133.51,133.49,0.05458167]
[1740743832163,0.05455411,133.51,133.5,7.4957]
[1740743832362,0.05455411,133.51,133.49,0.05458167]
[1740743832758,0.05455411,133.51,133.49,7.55048167]
[1740743833860,1.8581,133.58,133.49,0.05458167]
[1740743834062,1.8581,133.58,133.43,178.05442529]
[1740743834261,7.492,133.57,133.43,178.05442529]
[1740743834463,7.492,133.57,133.54,7.4931]
[1740743834762,7.492,133.57,133.44,164.04052529]
[1740743834963,1.8581,133.58,133.53,7.4937]
[1740743835163,1.8581,133.58,133.45,179.03712529]
[1740743835360,7.4924,133.56,133.54,0.05099659]
[1740743835567,7.4924,133.56,133.45,179.03712529]
[1740743835762,7.54668131,133.56,133.54,0.05498853]
[1740743836066,1.8581,133.58,133.54,0.05275778]
[1740743836266,0.05600417,133.56,133.54,0.05275778]
[1740743837066,0.05600417,133.56,133.55,7.4929]
[1740743837257,3.8044,133.62,133.54,0.05275778]
[1740743837567,3.8044,133.62,133.56,7.4921]
[1740743838166,7.4909,133.59,133.56,7.4921]
[1740743838367,3.8044,133.62,133.45,164.04052529]
[1740743838564,0.05338015,133.59,133.56,0.04885574]
[1740743838764,7.4924,133.56,133.46,179.03642529]
[1740743838965,3.8044,133.62,133.53,7.494]
[1740743839167,0.05395013,133.52,133.47,1.9052]
[1740743839471,7.4927,133.56,133.53,7.4937]
[1740743839659,7.5456667,133.56,133.53,7.4937]
[1740743839864,0.0529667,133.56,133.48,1.8847]
[1740743840056,0.0529667,133.56,133.54,7.4934]
[1740743840260,0.0529667,133.56,133.53,0.05550504]
[1740743841165,3.8044,133.62,133.53,0.05550504]
[1740743841365,1.8392,133.62,133.48,165.92522529]
[1740743842368,0.05505093,133.56,133.54,0.0485647]
[1740743842572,1.8392,133.62,133.54,0.0485647]
[1740743842872,7.4911,133.59,133.54,0.0485647]
[1740743843164,1.8392,133.62,133.54,0.0485647]
[1740743843757,0.0499793,133.59,133.54,0.0485647]
[1740743843963,7.4915,133.58,133.54,0.0485647]
[1740743844168,7.4915,133.58,133.55,7.4926]
[1740743844665,0.0499793,133.59,133.54,0.0485647]
[1740743844968,7.4915,133.58,133.55,7.4925]
[1740743845366,7.4924,133.56,133.54,0.0485647]
[1740743845567,0.0499793,133.59,133.54,0.0485647]
[1740743845767,7.4925,133.56,133.54,0.0485647]
[1740743845965,0.0499793,133.59,133.54,0.0485647]
[1740743846467,7.492,133.57,133.54,7.5416647]
[1740743847967,7.4924,133.56,133.54,7.5416647]
[1740743848170,12.0,133.58,133.54,0.0485647]
[1740743848359,13.9874,133.58,133.54,0.0485647]
[1740743848566,7.4929,133.55,133.54,0.0485647]
[1740743849372,0.0493015,133.56,133.54,0.0485647]
[1740743849771,0.0493015,133.56,133.55,7.4929]
[1740743851671,0.0493015,133.56,133.54,0.0485647]
[1740743852371,0.0493015,133.56,133.54,7.5415647]
[1740743855865,0.0493015,133.56,133.55,7.4929]
[1740743856874,1.5e-06,133.56,133.55,7.4929]
[1740743857476,1.5e-06,133.56,133.55,9.4538]
[1740743861478,1.5e-06,133.56,133.55,7.4929]
[1740743864184,1.5e-06,133.56,133.54,7.5417647]
[1740743864481,1.5e-06,133.56,133.54,0.0485647]
[1740743867387,7.4925015,133.56,133.54,0.0485647]
[1740743869290,7.4929,133.55,133.54,0.0485647]
[1740743871990,7.4957,133.5,133.49,25.39749]
[1740743873791,7.4957,133.5,133.49,10.33399]
[1740743874187,23.1757,133.5,133.48,0.05212691]
[1740743874393,15.68,133.5,133.38,11.2982]
[1740743874693,11.94,133.5,133.38,3.7962]
[1740743874993,7.5004,133.42,133.38,3.7962]
[1740743875393,11.94,133.5,133.38,3.7962]
[1740743875593,0.05541576,133.42,133.39,1.96386461]
[1740743875793,11.94,133.5,133.39,1.908]
[1740743875996,0.04867828,133.42,133.39,1.95829599]
[1740743876194,7.499,133.45,133.39,1.908]
[1740743876488,0.05036214,133.42,133.39,1.96017942]
[1740743876696,11.94,133.5,133.38,3.7962]
[1740743876895,0.04779977,133.42,133.39,0.05197333]
[1740743877196,11.94,133.43,133.39,0.05256863]
[1740743877496,0.05427319,133.42,133.32,5.7477]
[1740743877696,11.94,133.43,133.4,0.05296238]
[1740743877890,0.05161006,133.38,133.32,5.7477]
[1740743878084,11.94,133.43,133.32,5.7477]
[1740743878293,11.94,133.43,133.34,0.04751634]
[1740743878489,11.94,133.43,133.32,5.7477]
[1740743879295,11.94,133.48,133.42,7.5002]
[1740743879602,11.94,133.48,133.32,171.2883753]
[1740743879799,11.94,133.48,133.33,1.5000375]
[1740743880095,11.94,133.48,133.43,7.4996]
[1740743880494,7.4975,133.47,133.43,7.4996]
[1740743880693,0.05738996,133.47,133.44,0.05237075]
[1740743880889,11.94,133.48,133.44,7.499]
[1740743881089,0.05219251,133.47,133.44,0.0576199]
[1740743881287,11.92,133.51,133.45,7.4985]
[1740743881490,0.04817819,133.47,133.44,0.05493479]
[1740743882397,0.04817819,133.47,133.44,7.55393479]
[1740743882999,0.04817819,133.47,133.44,0.05493479]
[1740743883399,0.04817819,133.47,133.46,7.4979]
[1740743886593,13.8022,133.53,133.45,1.9783]
[1740743886799,13.8022,133.53,133.45,3.8574]
[1740743887299,21.2965,133.53,133.5,7.4957]
[1740743887501,13.8022,133.53,133.45,3.8574]
[1740743887697,7.4946,133.52,133.5,0.05436805]
[1740743887896,13.85335245,133.53,133.5,0.05436805]
[1740743888095,11.97115245,133.53,133.5,0.05436805]
[1740743889003,7.4951,133.51,133.5,0.05436805]
[1740743889596,11.97115245,133.53,133.5,0.05436805]
[1740743889899,0.05115245,133.53,133.5,0.05436805]
[1740743890298,0.05115245,133.53,133.51,7.4947]
[1740743891406,0.05115245,133.53,133.5,0.05436805]
[1740743892904,7.4951,133.51,133.5,0.05436805]
[1740743894309,7.495,133.52,133.5,0.05436805]
[1740743894509,0.05115245,133.53,133.5,0.05436805]
[1740743894910,7.4946,133.52,133.5,0.05436805]
[1740743895110,0.05115245,133.53,133.5,7.54996805]
[1740743895309,0.05115245,133.53,133.5,0.05436805]
[1740743895505,7.4946,133.52,133.5,0.05436805]
[1740743896411,0.05115245,133.53,133.5,0.05436805]
[1740743898603,0.05115245,133.53,133.5,0.00716805]
[1740743898807,0.05115245,133.53,133.42,1.8349]
[1740743899013,1.32925092,133.55,133.42,1.8349]
[1740743899514,1.32925092,133.56,133.42,1.8349]
[1740743899711,1.32925092,133.55,133.42,1.8349]
[1740743899916,0.0560771,133.5,133.48,0.05619355]
[1740743900213,11.92,133.5,133.48,0.05619355]
[1740743900411,11.97393606,133.5,133.48,0.05619355]
[1740743900807,11.97393606,133.5,133.42,1.8349]
[1740743901114,11.97393606,133.5,133.4,1.9518]
[1740743901315,11.92,133.5,133.4,1.9518]
[1740743902011,0.04821181,133.46,133.44,0.04991379]
[1740743906719,0.04821181,133.46,133.34,5.7599]
[1740743906917,1.32996463,133.48,133.34,5.7599]
[1740743908021,0.05602598,133.42,133.4,0.0508809]
[1740743908222,11.9,133.41,133.4,0.0508809]
[1740743912624,0.05667574,133.42,133.4,0.0508809]
[1740743913821,0.05667574,133.42,133.34,5.7599]
[1740743915026,0.05667574,133.42,133.37,0.04969119]
[1740743940051,7.5015,133.4,133.37,7.55239119]
[1740743942048,0.05667574,133.42,133.37,0.04969119]
[1740743942550,7.55697574,133.42,133.39,7.5016]
[1740743943753,0.05667574,133.42,133.39,7.5016]
[1740743945458,0.05667574,133.42,133.4,7.5009]
[1740743945755,11.9,133.45,133.37,0.04969119]
[1740743945955,11.9,133.45,133.42,7.4999]
[1740743946356,100.94192645,133.47,133.42,7.4999]
[1740743946752,7.5473515,133.46,133.43,0.05531732]
[1740743947161,0.0489515,133.46,133.43,0.05531732]
[1740743947362,7.4991,133.44,133.43,0.05531732]
[1740743951962,7.4991,133.44,133.43,1.732e-05]
[1740743956373,7.4988,133.45,133.43,1.732e-05]
[1740743956568,0.0489515,133.46,133.43,1.732e-05]
[1740743956971,7.4985,133.45,133.43,1.732e-05]
[1740743957572,7.4985,133.45,133.43,1.91671732]
[1740743958081,0.0489515,133.46,133.43,1.91671732]
[1740743958268,7.5470515,133.46,133.43,9.41631732]
[1740743958469,0.0489515,133.46,133.43,1.91671732]
[1740743958670,7.4966,133.49,133.45,7.498]
[1740743959079,7.4966,133.49,133.44,3.9413]
[1740743959378,19.396,133.5,133.46,7.4975]
[1740743959872,0.0539965,133.49,133.47,0.0479322]
[1740743960069,0.0539965,133.49,133.47,7.5451322]
[1740743960273,83.07568325,133.53,133.47,7.5451322]
[1740743960784,7.4955,133.51,133.48,7.4967]
[1740743961379,7.4948,133.52,133.49,7.4962]
[1740743962370,11.9,133.54,133.47,0.0479322]
[1740743962679,0.04977059,133.52,133.47,0.0479322]
[1740743962881,7.4936,133.54,133.51,7.4951]
[1740743963276,7.493,133.55,133.52,7.4945]
[1740743963874,7.4926,133.56,133.52,7.4945]
[1740743964086,0.05631509,133.55,133.53,7.494]
[1740743964579,0.05631509,133.55,133.53,9.479]
[1740743968685,7.54931509,133.55,133.53,1.985]
[1740743968886,7.54931509,133.55,133.52,0.04984748]
[1740743969080,0.05631509,133.55,133.52,0.04984748]
[1740743969284,0.05631509,133.55,133.52,7.54414748]
[1740743970786,0.05631509,133.55,133.52,0.04984748]
[1740743972588,0.05631509,133.55,133.54,7.4934]
[1740743974488,1.8646,133.63,133.52,0.04984748]
[1740743974692,7.4904,133.6,133.46,165.89242529]
[1740743974889,11.88,133.62,133.46,165.89242529]
[1740743975091,7.4909,133.59,133.56,7.4923]
[1740743975690,7.53833015,133.59,133.56,7.54867134]
[1740743975887,0.04743015,133.59,133.56,0.05637134]
[1740743976091,0.04743015,133.59,133.58,7.4912]
[1740743976291,0.04743015,133.59,133.56,0.05637134]
[1740743976691,0.04743015,133.59,133.56,7.54817134]
[1740743976986,0.04743015,133.59,133.56,0.05637134]
[1740743977191,0.04743015,133.59,133.57,7.4916]
[1740743978592,0.04743015,133.59,133.56,0.05637134]
[1740743978792,0.04743015,133.59,133.58,7.4912]
[1740743981394,7.4894,133.62,133.58,7.4912]
[1740743981797,7.4894,133.62,133.57,5.7144]
[1740743982399,7.4894,133.62,133.58,7.4909]
[1740743982602,7.53902357,133.61,133.57,5.7144]
[1740743983001,7.53902357,133.61,133.58,7.4912]
[1740743983204,7.53902357,133.61,133.57,5.7144]
[1740743984403,7.53902357,133.61,133.58,7.4911]
[1740743987904,7.53902357,133.61,133.57,3.8702]
[1740743988099,0.04922357,133.61,133.57,3.8702]
[1740743989105,7.53902357,133.61,133.58,7.4908]
[1740743990209,0.04922357,133.61,133.58,7.4907]
[1740743990704,7.4901,133.6,133.57,13.2802]
[1740743990907,0.04922357,133.61,133.57,5.7889]
[1740743991809,7.53882357,133.61,133.58,7.4909]
[1740744000010,0.04922357,133.61,133.56,0.05637134]
[1740744000411,7.4918,133.57,133.56,7.134e-05]
[1740744000913,3.9576,133.6,133.56,7.134e-05]
[1740744001314,7.4915,133.58,133.56,7.134e-05]
[1740744002918,7.4918,133.57,133.56,7.134e-05]
[1740744003311,11.2318,133.57,133.56,7.134e-05]
[1740744003511,7.4918,133.57,133.56,7.134e-05]
[1740744003711,11.2318,133.57,133.56,7.134e-05]
[1740744004419,12.56094261,133.57,133.56,7.134e-05]
[1740744005013,7.4918,133.57,133.56,7.134e-05]
[1740744005410,0.04870308,133.59,133.56,7.134e-05]
[1740744006721,7.4916,133.58,133.56,7.134e-05]
[1740744007118,0.04870308,133.59,133.56,7.134e-05]
[1740744009023,7.53970308,133.59,133.56,7.134e-05]
[1740744010124,0.04870308,133.59,133.57,7.4917]
[1740744010421,0.04870308,133.59,133.56,7.134e-05]
[1740744010813,0.04870308,133.59,133.58,7.4912]
[1740744011122,0.04870308,133.59,133.56,7.134e-05]
[1740744011525,0.04870308,133.59,133.56,7.49187134]
[1740744011720,0.04870308,133.59,133.56,7.134e-05]
[1740744011925,7.4918,133.57,133.56,7.134e-05]
[1740744013823,0.04870308,133.59,133.56,7.134e-05]
[1740744014016,0.04870308,133.59,133.57,7.4917]
[1740744015221,0.04870308,133.59,133.58,7.4912]
[1740744017921,0.04870308,133.59,133.57,11.3673]
[1740744018119,0.04870308,133.59,133.57,3.8758]
[1740744019032,0.04870308,133.59,133.57,11.3671]
[1740744020128,0.04870308,133.59,133.58,7.4912]
[1740744020532,0.04870308,133.59,133.57,3.8758]
[1740744020730,0.04870308,133.59,133.57,11.3674]
[1740744020937,0.04870308,133.59,133.57,3.8758]
[1740744021935,0.04870308,133.59,133.58,7.4912]
[1740744022442,0.04870308,133.59,133.57,11.3673]
[1740744022833,0.04870308,133.59,133.57,3.8758]
[1740744023436,0.04870308,133.59,133.56,7.134e-05]
[1740744023827,0.04870308,133.59,133.58,7.4912]
[1740744024235,0.04870308,133.59,133.56,7.134e-05]
[1740744025436,0.04870308,133.59,133.58,7.4912]
[1740744027444,0.04870308,133.59,133.56,7.134e-05]
[1740744027847,0.04870308,133.59,133.57,7.4914]
[1740744028541,0.04870308,133.59,133.56,7.134e-05]
[1740744029337,0.04870308,133.59,133.58,7.4912]
[1740744032345,0.04870308,133.59,133.56,7.134e-05]
[1740744033346,0.04870308,133.59,133.57,7.4915]
[1740744033546,0.04870308,133.59,133.56,7.134e-05]
[1740744033938,0.04870308,133.59,133.58,7.4912]
[1740744036043,0.04870308,133.59,133.56,7.134e-05]
[1740744036835,7.4918,133.57,133.56,7.134e-05]
[1740744038944,11.2318,133.57,133.56,7.134e-05]
[1740744040547,12.5609163,133.57,133.56,7.134e-05]
[1740744040750,11.2318,133.57,133.56,7.134e-05]
[1740744041242,12.56092107,133.57,133.56,7.134e-05]
[1740744042742,11.2318,133.57,133.56,7.134e-05]
[1740744042948,12.56108764,133.57,133.56,7.134e-05]
[1740744043946,12.56108519,133.57,133.56,7.134e-05]
[1740744044547,11.2318,133.57,133.56,7.134e-05]
[1740744044750,12.56108694,133.57,133.56,7.134e-05]
[1740744046347,12.56108694,133.57,133.39,1.92]
[1740744046348,7.4973,133.48,133.39,1.92]
[1740744046545,11.88,133.49,133.43,7.4994]
[1740744046751,11.88,133.49,133.4,3.8384]
[1740744047051,7.4984,133.46,133.4,3.8384]
[1740744047648,0.05339115,133.44,133.42,7.54809047]
[1740744049856,0.05339115,133.44,133.42,0.04799047]
[1740744051450,7.4996,133.43,133.42,0.04799047]
[1740744052056,0.05339115,133.44,133.42,0.04799047]
[1740744052760,7.55279115,133.44,133.42,0.04799047]
[1740744053054,0.05339115,133.44,133.42,0.04799047]
[1740744053958,0.05339115,133.44,133.42,7.54779047]
[1740744054762,7.55279115,133.44,133.42,0.04799047]
[1740744055061,0.05339115,133.44,133.42,0.04799047]
[1740744056461,0.05339115,133.44,133.42,7.54789047]
[1740744056961,0.05339115,133.44,133.42,0.04799047]
[1740744057863,0.05339115,133.44,133.43,7.4996]
[1740744060671,0.05339115,133.44,133.42,0.04799047]
[1740744061070,0.05339115,133.44,133.43,7.4996]
[1740744061265,0.05339115,133.44,133.42,0.04799047]
[1740744061668,0.05339115,133.44,133.43,7.4996]
[1740744062570,0.05339115,133.44,133.42,0.04799047]
[1740744062769,7.55269115,133.44,133.42,0.04799047]
[1740744063271,0.05339115,133.44,133.42,0.04799047]
[1740744063861,7.4996,133.43,133.42,0.04799047]
[1740744064373,0.05339115,133.44,133.42,0.04799047]
[1740744064870,7.4996,133.43,133.42,0.04799047]
[1740744066265,0.05339115,133.44,133.34,5.6509]
[1740744066469,7.5014,133.4,133.34,5.6509]
[1740744066972,11.88,133.43,133.34,5.6509]
[1740744067171,7.5019,133.39,133.36,7.5032]
[1740744067366,11.88,133.43,133.34,5.6509]
[1740744067570,0.05004166,133.39,133.36,0.04801149]
[1740744067773,7.5029,133.38,133.36,0.04801149]
[1740744068271,7.5024,133.38,133.36,0.04801149]
[1740744068469,0.05004166,133.39,133.36,0.04801149]
[1740744068768,7.55234166,133.39,133.36,7.55151149]
[1740744068967,0.05004166,133.39,133.36,7.55151149]
[1740744069167,0.05004166,133.39,133.36,0.04801149]
[1740744069373,190.0,133.52,133.36,3.78801149]
[1740744069571,1.32997887,133.51,133.37,3.7773]
[1740744069871,366.38986748,133.58,133.37,3.7773]
[1740744069872,86.93544819,133.57,133.37,3.7773]
[1740744070268,83.20834819,133.57,133.38,17.88187016]
[1740744070474,83.20834819,133.57,133.39,13.49749498]
[1740744070675,83.20834819,133.57,133.45,0.05199157]
[1740744070875,83.20834819,133.57,133.53,7.4939]
[1740744071072,83.20834819,133.59,133.46,15.8664]
[1740744071271,83.20834819,133.59,133.46,167.76692529]
[1740744071470,7.4918,133.57,133.5,7.4953]
[1740744071678,83.20834819,133.59,133.46,167.76692529]
[1740744071874,0.0521518,133.55,133.52,0.05220875]
[1740744072876,0.0521518,133.55,133.53,7.494]
[1740744073277,0.0521518,133.55,133.52,0.05220875]
[1740744073880,12.1721518,133.55,133.44,174.29787109]
[1740744074074,1.9318,133.54,133.41,3.7709]
[1740744074274,3.2608459,133.54,133.41,3.7709]
[1740744074471,1.32955999,133.53,133.41,5.6094]
[1740744074782,1.32955999,133.53,133.42,10.07015304]
[1740744075170,0.05001451,133.49,133.46,0.05203137]
[1740744076770,7.4968,133.48,133.46,0.05203137]
[1740744076970,12.12,133.48,133.46,0.05203137]
[1740744077175,19.617,133.48,133.46,0.05203137]
[1740744077577,12.12,133.48,133.46,0.05203137]
[1740744078076,0.05001451,133.49,133.46,0.05203137]
[1740744080982,7.4971,133.48,133.46,0.05203137]
[1740744081283,0.05001451,133.49,133.46,0.05203137]
[1740744081477,7.4974,133.47,133.46,0.05203137]
[1740744082583,7.497,133.48,133.46,0.05203137]